[Event "FIDE World Junior U20-ch Girls 2025"]
[Site "Petrovac"]
[Date "2025.03.01"]
[Round "5.10"]
[White "Shukhman, Anna"]
[Black "Khuslen, Erdenebayar"]
[Result "1-0"]
[Annotator "ChessBase"]
[ECO "B46"]
[WhiteElo "2365"]
[BlackElo "2201"]
[PlyCount "85"]
[EventDate "2025.02.23"]
[EventType "swiss"]
[EventCountry "MNE"]
[SourceTitle "playchess.com"]
[Source "ChessBase"]
[SourceQuality "1"]
[TimeControl "40/5400+30:1800+30"]

1. e4 {[%emt 0:00:02]} c5 {[%emt 0:00:09]} 2. Nf3 {[%emt 0:00:01]} e6 {[%emt 0:00:30]} 3. d4 {[%emt 0:00:03]} cxd4 {[%emt 0:00:10]} 4. Nxd4 {[%emt 0:00:02]} Nc6 {[%emt 0:00:28]} 5. Nc3 {[%emt 0:00:04]} a6 {[%emt 0:01:04]} 6. g4 {[%emt 0:00:04]} Nge7 {[%emt 0:01:43]} 7. Be3 {[%emt 0:00:58]} b5 {[%emt 0:02:29]} 8. Nb3 {[%emt 0:00:06]} Na5 {[%emt 0:01:31]} 9. f4 {[%emt 0:04:51]} Bb7 {[%emt 0:06:02]} 10. Nc5 {[%emt 0:01:59]} Bc6 {[%emt 0:00:50]} 11. Qd4 {[%emt 0:04:08]} Ng6 {[%emt 0:18:21]} 12. O-O-O {[%emt 0:16:20]} d6 {[%emt 0:12:32]} 13. Nxa6 {[%emt 0:19:31]} Rxa6 {[%emt 0:07:18]} 14. Nxb5 {[%emt 0:00:06]} Ra8 {[%emt 0:04:56]} 15. b4 {[%emt 0:02:44]} Nb7 {[%emt 0:14:40]} 16. Qc3 {[%emt 0:02:15]} Qd7 {[%emt 0:02:41]} 17. Na7 {[%emt 0:06:13]} Rxa7 {[%emt 0:05:42]} 18. Bxa7 {[%emt 0:00:08]} Bxe4 {[%emt 0:00:05]} 19. Rg1 {[%emt 0:04:36]} Be7 {[%emt 0:00:40]} 20. f5 {[%emt 0:05:17]} exf5 {[%emt 0:04:45]} 21. gxf5 {[%emt 0:00:22]} Qxf5 {[%emt 0:01:07]} 22. Bh3 {[%emt 0:02:25]} Qf4+ {[%emt 0:02:09]} 23. Be3 {[%emt 0:01:11]} Qxh2 {[%emt 0:00:23]} 24. Qc8+ {[%emt 0:00:35]} Nd8 {[%emt 0:00:25]} 25. Bd7+ {[%emt 0:07:26]} Kf8 {[%emt 0:00:05]} 26. Ba4 {[%emt 0:00:09]} Qh4 {[%emt 0:05:06]} 27. Qd7 {[%emt 0:02:50]} Kg8 {[%emt 0:00:12]} 28. Rg4 {[%emt 0:00:10]} Bc6 {[%emt 0:07:35]} 29. Bxc6 {[%emt 0:01:08]} Nf8 {[%emt 0:00:11]} 30. Qf5 {[%emt 0:09:42]} Qh2 {[%emt 0:00:28]} 31. Rh1 {[%emt 0:01:26]} Qe2 {[%emt 0:00:38]} 32. Qf3 {[%emt 0:02:33]} Qa6 {[%emt 0:00:25]} 33. Bd4 {[%emt 0:00:33]} Nfe6 {[%emt 0:00:51]} 34. b5 {[%emt 0:01:26]} Qxa2 {[%emt 0:00:20]} 35. Bd5 {[%emt 0:00:54]} Qa5 {[%emt 0:00:51]} 36. Rxg7+ {[%emt 0:02:08]} Nxg7 {[%emt 0:00:14]} 37. Rg1 {[%emt 0:00:29]} Bg5+ {[%emt 0:00:47]} 38. Rxg5 {[%emt 0:00:09]} Qe1+ {[%emt 0:00:09]} 39. Qd1 {[%emt 0:00:03]} Qb4 {[%emt 0:00:45]} 40. Bxg7 {[%emt 0:00:46]} Qf4+ {[%emt 0:00:16]} 41. Qd2 {[%emt 0:30:04]} Qf1+ {[%emt 0:01:21]} 42. Kb2 {[%emt 0:00:00]} h6 {[%emt 0:00:58]} 43. Bxh6+ {[%emt 0:00:00]} 1-0

[Event "FIDE World Junior U20-ch Girls 2025"]
[Site "Petrovac"]
[Date "2025.03.01"]
[Round "5.11"]
[White "Smietanska, Wiktoria"]
[Black "Khamdamova, Afruza"]
[Result "1/2-1/2"]
[Annotator "RC"]
[ECO "C95"]
[WhiteElo "2170"]
[BlackElo "2354"]
[PlyCount "160"]
[EventDate "2025.02.23"]
[EventType "swiss"]
[EventCountry "MNE"]
[SourceTitle "playchess.com"]
[Source "ChessBase"]
[SourceQuality "1"]
[TimeControl "40/5400+30:1800+30"]

1. e4 {[%emt 0:00:03]} e5 {[%emt 0:00:21]} 2. Nf3 {[%emt 0:00:10]} Nc6 {[%emt 0:00:04]} 3. Bb5 {[%emt 0:00:08]} a6 {[%emt 0:00:04]} 4. Ba4 {[%emt 0:00:07]} Nf6 {[%emt 0:00:05]} 5. O-O {[%emt 0:00:11]} Be7 {[%emt 0:00:02]} 6. Re1 {[%emt 0:00:18]} b5 {[%emt 0:00:07]} 7. Bb3 {[%emt 0:00:07]} d6 {[%emt 0:00:03]} 8. c3 {[%emt 0:00:15]} O-O {[%emt 0:00:05]} 9. h3 {[%emt 0:00:12]} Nb8 {[%emt 0:00:34]} 10. d4 {[%emt 0:02:37]} Nbd7 {[%emt 0:00:05]} 11. Nbd2 {[%emt 0:03:11]} Bb7 {[%emt 0:00:08]} 12. Bc2 {[%emt 0:02:51]} Re8 {[%emt 0:00:05]} 13. Nf1 {[%emt 0:03:01]} Bf8 {[%emt 0:00:45]} 14. Ng3 {[%emt 0:03:46]} a5 {[%emt 0:00:35]} 15. a4 {[%emt 0:13:14]} b4 {[%emt 0:00:54]} 16. cxb4 {[%emt 0:07:03]} axb4 {[%emt 0:01:29]} 17. b3 {[%emt 0:01:12]} g6 {[%emt 0:18:19]} 18. Bb2 {[%emt 0:02:55]} Bh6 {[%emt 0:03:25]} 19. Qe2 {[%emt 0:07:56]} exd4 {[%emt 0:07:21]} 20. Nxd4 {[%emt 0:02:24]} d5 {[%emt 0:01:07]} 21. Nb5 {[%emt 0:10:20]} Bf4 {[%emt 0:09:10]} 22. Qf3 {[%emt 0:07:08]} Be5 {[%emt 0:00:53]} 23. Bxe5 {[%emt 0:00:46]} Nxe5 {[%emt 0:00:03]} 24. Qf4 {[%emt 0:02:08]} c6 {[%emt 0:11:45]} 25. Nd4 {[%emt 0:07:50]} c5 {[%emt 0:02:43]} 26. Nf3 {[%emt 0:01:30]} Nxf3+ {[%emt 0:01:13]} 27. Qxf3 {[%emt 0:00:17]} d4 {[%emt 0:00:18]} 28. Bd3 {[%emt 0:02:20]} Nd7 {[%emt 0:00:21]} 29. Bb5 {[%emt 0:00:46]} Re6 {[%emt 0:11:03]} 30. Qe2 {[%emt 0:01:55]} Nf6 {[%emt 0:04:22]} 31. Qc2 {[%emt 0:03:17]} Qd6 {[%emt 0:04:25]} 32. Rac1 {[%emt 0:04:04]} Rc8 {[%emt 0:00:22]} 33. Bd3 {[%emt 0:02:56]} Qf4 {[%emt 0:09:26]} 34. Ne2 {[%emt 0:01:55]} Qb8 {[%emt 0:01:04]} 35. f3 {[%emt 0:02:31]} Nh5 {[%emt 0:02:06]} 36. Qd2 {[%emt 0:00:55]} Kg7 {[%emt 0:01:57]} 37. Rc2 {[%emt 0:01:14]} Qd6 {[%emt 0:01:22]} 38. Rec1 {[%emt 0:00:53]} f5 {[%emt 0:04:34]} 39. exf5 {[%emt 0:01:49]} Re3 {[%emt 0:00:07]} 40. a5 {[%emt 0:02:57]} Nf6 {[%emt 0:05:49]} 41. a6 {[%emt 0:04:21]} Ba8 {[%emt 0:08:38]} 42. Bb5 {[%emt 0:05:55]} Be4 {[%emt 0:07:31]} 43. Ra2 {[%emt 0:08:31]} Bxf5 {[%emt 0:01:37]} 44. a7 {[%emt 0:03:07]} Ra8 {[%emt 0:00:03]} 45. Nxd4 {[%emt 0:07:06]} Qxd4 {[%emt 0:08:43]} 46. Qxd4 {[%emt 0:00:09]} cxd4 {[%emt 0:00:03]} 47. Rc7+ {[%emt 0:01:47]} Kh6 {[%emt 0:00:21]} 48. Bc6 {[%emt 0:02:40]} Rxa7 {[%emt 0:00:45]} 49. Rcxa7 {[%emt 0:00:52]} Rxb3 {[%emt 0:01:48]} 50. Rd2 {[%emt 0:00:28]} Rc3 {[%emt 0:01:57]} 51. Be4 {[%emt 0:01:19]} Nxe4 {[%emt 0:02:13]} 52. fxe4 {[%emt 0:00:08]} Bxe4 {[%emt 0:00:01]} 53. Rxd4 {[%emt 0:00:22]} b3 {[%emt 0:00:30]} 54. Rxe4 {[%emt 0:01:01]} b2 {[%emt 0:00:05]} 55. Rb7 {[%emt 0:00:22]} Rc1+ {[%emt 0:00:03]} 56. Kh2 {[%emt 0:00:21]} b1=Q {[%emt 0:00:36]} 57. Rh4+ {[%emt 0:00:30]} Kg5 {[%emt 0:00:00]} 58. Rxb1 {[%emt 0:00:11]} Rxb1 {[%emt 0:00:00]} 59. Rxh7 {[%emt 0:00:10]} Rb3 {[%emt 0:00:00]} 60. Rc7 {[%emt 0:00:17]} Ra3 {[%emt 0:00:25]} 61. Rc5+ {[%emt 0:00:16]} Kf6 {[%emt 0:00:34]} 62. h4 {[%emt 0:00:30]} Rb3 {[%emt 0:00:27]} 63. g3 {[%emt 0:00:22]} Ra3 {[%emt 0:00:17]} 64. Kh3 {[%emt 0:00:09]} Ra4 {[%emt 0:00:16]} 65. Rc6+ {[%emt 0:00:39]} Kg7 {[%emt 0:00:11]} 66. Rc3 {[%emt 0:00:09]} Rb4 {[%emt 0:00:15]} 67. g4 {[%emt 0:00:11]} Ra4 {[%emt 0:00:49]} 68. Kg3 {[%emt 0:00:20]} Rb4 {[%emt 0:00:25]} 69. Rc7+ {[%emt 0:00:28]} Kg8 {[%emt 0:00:08]} 70. Kf3 {[%emt 0:00:45]} Kf8 {[%emt 0:00:27]} 71. Rc3 {[%emt 0:00:35]} Kg7 {[%emt 0:01:30]} 72. Re3 {[%emt 0:00:07]} Kf6 {[%emt 0:00:24]} 73. Re4 {[%emt 0:00:18]} Rb1 {[%emt 0:00:16]} 74. g5+ {[%emt 0:00:41]} Kf7 {[%emt 0:00:06]} 75. Rf4+ {[%emt 0:00:14]} Kg7 {[%emt 0:00:04]} 76. Ra4 {[%emt 0:00:08]} Rb7 {[%emt 0:00:14]} 77. Kg4 {[%emt 0:00:08]} Rc7 {[%emt 0:00:04]} 78. h5 {[%emt 0:00:32]} gxh5+ {[%emt 0:00:04]} 79. Kxh5 {[%emt 0:00:05]} Rb7 {[%emt 0:00:07]} 80. Ra6 {[%emt 0:00:30]} Rc7 {[%emt 0:00:05]} 1/2-1/2

[Event "FIDE World Junior U20-ch Girls 2025"]
[Site "Petrovac"]
[Date "2025.03.01"]
[Round "5.13"]
[White "Toncheva, Nadya"]
[Black "Ter-Avetisjana, Agnesa Stepania"]
[Result "1-0"]
[Annotator "ChessBase"]
[ECO "D47"]
[WhiteElo "2311"]
[BlackElo "2133"]
[PlyCount "89"]
[EventDate "2025.02.23"]
[EventType "swiss"]
[EventCountry "MNE"]
[SourceTitle "playchess.com"]
[Source "ChessBase"]
[SourceQuality "1"]
[TimeControl "40/5400+30:1800+30"]

1. d4 {[%emt 0:00:03]} d5 {[%emt 0:02:32]} 2. c4 {[%emt 0:00:05]} c6 {[%emt 0:00:07]} 3. Nc3 {[%emt 0:00:04]} Nf6 {[%emt 0:00:15]} 4. e3 {[%emt 0:00:06]} e6 {[%emt 0:00:53]} 5. Nf3 {[%emt 0:00:05]} Nbd7 {[%emt 0:00:06]} 6. Bd3 {[%emt 0:00:06]} dxc4 {[%emt 0:00:09]} 7. Bxc4 {[%emt 0:00:03]} b5 {[%emt 0:00:07]} 8. Bd3 {[%emt 0:00:04]} b4 {[%emt 0:00:38]} 9. Ne4 {[%emt 0:00:06]} Nxe4 {[%emt 0:00:43]} 10. Bxe4 {[%emt 0:00:05]} Bb7 {[%emt 0:00:07]} 11. O-O {[%emt 0:00:24]} Be7 {[%emt 0:02:30]} 12. a3 {[%emt 0:00:06]} a5 {[%emt 0:04:22]} 13. Qc2 {[%emt 0:00:05]} Qb6 {[%emt 0:02:15]} 14. axb4 {[%emt 0:06:31]} axb4 {[%emt 0:00:48]} 15. Rxa8+ {[%emt 0:07:10]} Bxa8 {[%emt 0:00:09]} 16. Nd2 {[%emt 0:00:12]} Nf6 {[%emt 0:10:31]} 17. Bd3 {[%emt 0:06:29]} c5 {[%emt 0:07:04]} 18. dxc5 {[%emt 0:25:09]} Qxc5 {[%emt 0:00:54]} 19. Qxc5 {[%emt 0:07:41]} Bxc5 {[%emt 0:00:09]} 20. Nb3 {[%emt 0:01:03]} Bd6 {[%emt 0:01:39]} 21. Bd2 {[%emt 0:08:49]} Ne4 {[%emt 0:13:04]} 22. Ra1 {[%emt 0:02:55]} Ke7 {[%emt 0:04:14]} 23. Rxa8 {[%emt 0:03:38]} Rg8 {[%emt 0:00:38]} 24. Rb8 Rxb8 {[%emt 0:00:00]} 25. Bxe4 {[%emt 0:00:33]} Ra8 {[%emt 0:00:27]} 26. Bc1 {[%emt 0:00:05]} Ra2 {[%emt 0:00:17]} 27. Bc2 {[%emt 0:02:29]} Be5 {[%emt 0:00:30]} 28. Bb1 {[%emt 0:00:00]} Ra7 {[%emt 0:01:21]} 29. Kf1 {[%emt 0:00:16]} f5 {[%emt 0:05:37]} 30. e4 {[%emt 0:03:44]} f4 {[%emt 0:02:30]} 31. Ke2 {[%emt 0:00:56]} g5 {[%emt 0:02:14]} 32. Bd3 {[%emt 0:08:35]} Bxb2 {[%emt 0:04:27]} 33. Bxb2 {[%emt 0:00:08]} Ra2 {[%emt 0:00:10]} 34. Nd2 {[%emt 0:00:15]} Rxb2 {[%emt 0:00:29]} 35. Bb1 {[%emt 0:00:04]} Kf6 {[%emt 0:12:12]} 36. Kd1 {[%emt 0:00:22]} Rxb1+ {[%emt 0:00:52]} 37. Nxb1 {[%emt 0:00:05]} Ke5 {[%emt 0:00:06]} 38. Nd2 {[%emt 0:02:44]} g4 {[%emt 0:00:47]} 39. Kc2 {[%emt 0:04:37]} Kd4 {[%emt 0:01:40]} 40. Nb3+ {[%emt 0:04:08]} Kxe4 {[%emt 0:07:26]} 41. Nc5+ {[%emt 0:30:05]} Kf5 {[%emt 0:30:08]} 42. f3 {[%emt 0:10:17]} h5 {[%emt 0:09:47]} 43. Kb3 {[%emt 0:00:00]} e5 {[%emt 0:00:00]} 44. Ne4 {[%emt 0:00:00]} h4 {[%emt 0:00:00]} 45. h3 {[%emt 0:00:00]} 1-0

[Event "FIDE World Junior U20-ch Girls 2025"]
[Site "Petrovac"]
[Date "2025.03.01"]
[Round "5.14"]
[White "Karmanova, Olga Dm."]
[Black "Wang, Qinxuanyi"]
[Result "1-0"]
[Annotator "NA"]
[ECO "B30"]
[WhiteElo "2292"]
[BlackElo "2165"]
[PlyCount "103"]
[EventDate "2025.02.23"]
[EventType "swiss"]
[EventCountry "MNE"]
[SourceTitle "playchess.com"]
[Source "ChessBase"]
[SourceQuality "1"]
[TimeControl "40/5400+30:1800+30"]

1. e4 {[%emt 0:00:06]} c5 {[%emt 0:00:05]} 2. Nf3 {[%emt 0:00:05]} Nc6 {[%emt 0:00:06]} 3. Bb5 {[%emt 0:00:04]} e6 {[%emt 0:00:06]} 4. O-O {[%emt 0:00:05]} Nge7 {[%emt 0:00:04]} 5. Re1 {[%emt 0:00:10]} a6 {[%emt 0:00:09]} 6. Bf1 {[%emt 0:00:13]} d5 {[%emt 0:00:07]} 7. d3 {[%emt 0:00:07]} d4 {[%emt 0:00:06]} 8. e5 {[%emt 0:00:09]} Ng6 {[%emt 0:00:07]} 9. c3 {[%emt 0:00:29]} Be7 {[%emt 0:00:30]} 10. g3 {[%emt 0:01:02]} b5 {[%emt 0:00:07]} 11. h4 {[%emt 0:01:41]} Bb7 {[%emt 0:02:47]} 12. h5 {[%emt 0:06:35]} Nf8 {[%emt 0:00:06]} 13. Bg2 {[%emt 0:07:06]} Qd7 {[%emt 0:10:46]} 14. a4 {[%emt 0:02:39]} b4 {[%emt 0:04:24]} 15. Nbd2 {[%emt 0:09:38]} dxc3 {[%emt 0:05:55]} 16. Nc4 {[%emt 0:02:43]} Rd8 {[%emt 0:01:26]} 17. bxc3 {[%emt 0:01:10]} Qxd3 {[%emt 0:08:53]} 18. Nd6+ {[%emt 0:05:25]} Rxd6 {[%emt 0:00:05]} 19. exd6 {[%emt 0:00:03]} Qxd1 {[%emt 0:00:10]} 20. Rxd1 {[%emt 0:00:07]} Bf6 {[%emt 0:00:04]} 21. Be3 {[%emt 0:05:12]} Bxc3 {[%emt 0:02:42]} 22. Rac1 {[%emt 0:00:28]} Nd7 {[%emt 0:00:06]} 23. Ng5 {[%emt 0:00:53]} Na5 {[%emt 0:28:55]} 24. Bxb7 {[%emt 0:02:07]} Nxb7 {[%emt 0:00:04]} 25. Ne4 {[%emt 0:02:50]} O-O {[%emt 0:00:08]} 26. Nxc3 {[%emt 0:01:23]} bxc3 {[%emt 0:00:04]} 27. Rxc3 {[%emt 0:00:05]} Rc8 {[%emt 0:00:06]} 28. Rb1 {[%emt 0:04:10]} Nd8 {[%emt 0:01:51]} 29. h6 {[%emt 0:02:27]} gxh6 {[%emt 0:09:42]} 30. Bxh6 {[%emt 0:05:20]} f6 {[%emt 0:02:08]} 31. Rb4 {[%emt 0:04:17]} Kf7 {[%emt 0:02:07]} 32. Rg4 {[%emt 0:02:28]} e5 {[%emt 0:00:06]} 33. f4 {[%emt 0:11:09]} Ke6 {[%emt 0:00:57]} 34. Rg8 {[%emt 0:06:09]} c4 {[%emt 0:01:42]} 35. fxe5 {[%emt 0:02:51]} Nxe5 {[%emt 0:02:45]} 36. Bf4 {[%emt 0:00:39]} Kxd6 {[%emt 0:06:38]} 37. Kf2 {[%emt 0:01:10]} Ke7 {[%emt 0:01:14]} 38. Bxe5 {[%emt 0:00:53]} fxe5 {[%emt 0:00:11]} 39. Rg4 {[%emt 0:01:08]} Ne6 {[%emt 0:02:21]} 40. Rgxc4 {[%emt 0:00:17]} Rd8 {[%emt 0:06:04]} 41. Rh4 {[%emt 0:32:23]} Ng5 {[%emt 0:06:31]} 42. Rc7+ {[%emt 0:00:00]} Ke6 {[%emt 0:03:03]} 43. Rc6+ {[%emt 0:00:00]} Kd5 {[%emt 0:01:14]} 44. Rxa6 {[%emt 0:00:00]} Rc8 {[%emt 0:00:07]} 45. Ra5+ {[%emt 0:00:00]} Ke6 {[%emt 0:00:21]} 46. g4 {[%emt 0:00:00]} Rc2+ {[%emt 0:04:04]} 47. Ke3 {[%emt 0:00:00]} Rc3+ {[%emt 0:00:33]} 48. Ke2 {[%emt 0:00:00]} Rc4 {[%emt 0:06:22]} 49. Rh6+ {[%emt 0:00:00]} Kd7 {[%emt 0:01:51]} 50. Ra7+ {[%emt 0:00:00]} Ke8 {[%emt 0:01:04]} 51. Rb6 {[%emt 0:00:00]} Rc8 {[%emt 0:00:47]} 52. Rg7 {[%emt 0:00:00]} 1-0

[Event "FIDE World Junior U20-ch Girls 2025"]
[Site "Petrovac"]
[Date "2025.03.01"]
[Round "5.15"]
[White "Mungunzul, Bat-Erdene"]
[Black "Mihelic, Vesna"]
[Result "1-0"]
[Annotator "NA"]
[ECO "D58"]
[WhiteElo "2268"]
[BlackElo "2115"]
[PlyCount "119"]
[EventDate "2025.02.23"]
[EventType "swiss"]
[EventCountry "MNE"]
[SourceTitle "playchess.com"]
[Source "ChessBase"]
[SourceQuality "1"]
[TimeControl "40/5400+30:1800+30"]

1. d4 {[%emt 0:00:04]} d5 {[%emt 0:00:06]} 2. c4 {[%emt 0:00:06]} e6 {[%emt 0:00:05]} 3. Nc3 {[%emt 0:00:09]} Nf6 {[%emt 0:00:07]} 4. Bg5 {[%emt 0:00:46]} Be7 {[%emt 0:00:10]} 5. Nf3 {[%emt 0:00:07]} h6 {[%emt 0:00:15]} 6. Bh4 {[%emt 0:00:06]} O-O {[%emt 0:00:09]} 7. e3 {[%emt 0:00:06]} b6 {[%emt 0:00:15]} 8. Bd3 {[%emt 0:00:18]} Bb7 {[%emt 0:02:26]} 9. O-O {[%emt 0:01:07]} Nbd7 {[%emt 0:00:31]} 10. Qe2 {[%emt 0:00:20]} c5 {[%emt 0:02:21]} 11. Bg3 {[%emt 0:00:51]} Nh5 {[%emt 0:12:38]} 12. cxd5 {[%emt 0:00:59]} Nxg3 {[%emt 0:03:45]} 13. hxg3 {[%emt 0:00:07]} exd5 {[%emt 0:00:31]} 14. Rad1 {[%emt 0:00:12]} Bf6 {[%emt 0:13:10]} 15. Bb1 {[%emt 0:16:20]} g6 {[%emt 0:13:10]} 16. Rd2 {[%emt 0:03:00]} Re8 {[%emt 0:04:52]} 17. Rfd1 {[%emt 0:06:06]} c4 {[%emt 0:03:29]} 18. b3 {[%emt 0:00:44]} cxb3 {[%emt 0:05:13]} 19. axb3 {[%emt 0:01:21]} Be7 {[%emt 0:01:54]} 20. Bd3 {[%emt 0:06:13]} Bb4 {[%emt 0:01:53]} 21. Rc2 {[%emt 0:00:09]} Rc8 {[%emt 0:04:39]} 22. Na2 {[%emt 0:05:07]} Bd6 {[%emt 0:01:32]} 23. Rdc1 {[%emt 0:02:57]} Nf6 {[%emt 0:01:18]} 24. Nc3 {[%emt 0:09:30]} Qe7 {[%emt 0:04:59]} 25. Ba6 {[%emt 0:05:31]} Kg7 {[%emt 0:04:57]} 26. Nd1 {[%emt 0:12:59]} Rxc2 {[%emt 0:02:32]} 27. Rxc2 {[%emt 0:00:05]} Ne4 {[%emt 0:00:19]} 28. Nb2 {[%emt 0:02:49]} g5 {[%emt 0:16:29]} 29. Nd1 {[%emt 0:04:31]} Rd8 {[%emt 0:00:32]} 30. Qd3 {[%emt 0:04:18]} Qd7 {[%emt 0:00:22]} 31. Ne5 {[%emt 0:01:17]} Bxe5 {[%emt 0:00:28]} 32. Bxb7 {[%emt 0:00:05]} Qxb7 {[%emt 0:00:36]} 33. dxe5 {[%emt 0:00:04]} Nc5 {[%emt 0:00:21]} 34. Qf5 {[%emt 0:01:42]} Qe7 {[%emt 0:00:12]} 35. b4 {[%emt 0:00:15]} Na6 {[%emt 0:00:39]} 36. Rb2 {[%emt 0:02:37]} d4 {[%emt 0:00:42]} 37. exd4 {[%emt 0:00:14]} Rxd4 {[%emt 0:00:02]} 38. Ne3 {[%emt 0:00:08]} Qe6 {[%emt 0:00:50]} 39. Qc2 {[%emt 0:01:14]} Rxb4 {[%emt 0:00:33]} 40. Ra2 {[%emt 0:09:59]} Nc5 {[%emt 0:00:52]} 41. Nf5+ {[%emt 0:33:58]} Kh8 {[%emt 0:15:06]} 42. Rxa7 {[%emt 0:00:00]} Rc4 {[%emt 0:01:24]} 43. Qb1 {[%emt 0:00:00]} Qg6 {[%emt 0:01:23]} 44. Rc7 {[%emt 0:00:00]} Ra4 {[%emt 0:07:57]} 45. f3 {[%emt 0:00:00]} g4 {[%emt 0:04:18]} 46. f4 {[%emt 0:00:00]} Ne6 {[%emt 0:02:25]} 47. Rc8+ {[%emt 0:00:00]} Kh7 {[%emt 0:00:09]} 48. Rc6 {[%emt 0:00:00]} b5 {[%emt 0:00:35]} 49. Kh2 {[%emt 0:00:00]} Rc4 {[%emt 0:00:34]} 50. Rb6 {[%emt 0:00:00]} b4 {[%emt 0:00:11]} 51. Qf1 {[%emt 0:00:00]} Qh5+ {[%emt 0:01:10]} 52. Kg1 {[%emt 0:00:00]} Re4 {[%emt 0:00:52]} 53. Nd6 {[%emt 0:00:00]} Rd4 {[%emt 0:00:18]} 54. Rb7 {[%emt 0:00:00]} Rxd6 {[%emt 0:00:36]} 55. exd6 {[%emt 0:00:13]} Qc5+ {[%emt 0:00:10]} 56. Qf2 {[%emt 0:00:05]} Nd4 {[%emt 0:00:47]} 57. Rxf7+ {[%emt 0:04:14]} Kg8 {[%emt 0:00:07]} 58. Rc7 {[%emt 0:00:11]} Ne2+ {[%emt 0:00:27]} 59. Kf1 {[%emt 0:00:11]} Qxd6 {[%emt 0:00:32]} 60. Rc8+ {[%emt 0:00:06]} 1-0

[Event "FIDE World Junior U20-ch Girls 2025"]
[Site "Petrovac"]
[Date "2025.03.01"]
[Round "5.16"]
[White "Shokirjonova, Barchinoy"]
[Black "Kaldarova, Ayaulym"]
[Result "1/2-1/2"]
[Annotator "NA"]
[ECO "E12"]
[WhiteElo "2061"]
[BlackElo "2248"]
[PlyCount "124"]
[EventDate "2025.02.23"]
[EventType "swiss"]
[EventCountry "MNE"]
[SourceTitle "playchess.com"]
[Source "ChessBase"]
[SourceQuality "1"]
[TimeControl "40/5400+30:1800+30"]

1. d4 {[%emt 0:00:09]} e6 {[%emt 0:00:13]} 2. c4 {[%emt 0:00:29]} Nf6 {[%emt 0:00:20]} 3. Nf3 {[%emt 0:00:29]} b6 {[%emt 0:00:35]} 4. a3 {[%emt 0:03:07]} Bb7 {[%emt 0:01:50]} 5. Nc3 {[%emt 0:01:10]} d5 {[%emt 0:00:20]} 6. Bg5 {[%emt 0:00:29]} Be7 {[%emt 0:09:22]} 7. e3 {[%emt 0:00:16]} O-O {[%emt 0:01:49]} 8. Rc1 {[%emt 0:01:01]} Nbd7 {[%emt 0:09:55]} 9. cxd5 {[%emt 0:00:29]} exd5 {[%emt 0:00:26]} 10. Be2 {[%emt 0:00:08]} c6 {[%emt 0:03:41]} 11. O-O {[%emt 0:07:15]} Ne4 {[%emt 0:09:56]} 12. Bxe7 {[%emt 0:13:39]} Qxe7 {[%emt 0:00:07]} 13. Nxe4 {[%emt 0:03:49]} dxe4 {[%emt 0:01:18]} 14. Nd2 {[%emt 0:02:20]} f5 {[%emt 0:03:27]} 15. Qb3+ {[%emt 0:09:15]} Kh8 {[%emt 0:00:12]} 16. Nc4 {[%emt 0:06:23]} Rab8 {[%emt 0:10:28]} 17. Rfd1 {[%emt 0:16:03]} Rf6 {[%emt 0:05:15]} 18. Qb4 {[%emt 0:05:14]} Qe6 {[%emt 0:08:21]} 19. Qd2 {[%emt 0:03:55]} Rbf8 {[%emt 0:03:07]} 20. f4 {[%emt 0:03:17]} exf3 {[%emt 0:13:30]} 21. Bxf3 {[%emt 0:00:11]} Qe7 {[%emt 0:00:11]} 22. Re1 {[%emt 0:07:06]} Re6 {[%emt 0:00:51]} 23. b4 {[%emt 0:06:00]} Ba6 {[%emt 0:03:59]} 24. d5 {[%emt 0:05:51]} cxd5 {[%emt 0:00:12]} 25. Bxd5 {[%emt 0:00:09]} Rh6 {[%emt 0:00:38]} 26. e4 {[%emt 0:00:36]} Bxc4 {[%emt 0:05:15]} 27. Rxc4 {[%emt 0:00:32]} Ne5 {[%emt 0:00:36]} 28. Rc3 {[%emt 0:01:36]} f4 {[%emt 0:01:41]} 29. Rf1 {[%emt 0:02:03]} Rh4 {[%emt 0:00:43]} 30. Qc1 {[%emt 0:01:32]} Qd8 {[%emt 0:06:01]} 31. Be6 {[%emt 0:00:48]} Qd4+ {[%emt 0:00:27]} 32. Kh1 {[%emt 0:00:07]} Ng4 {[%emt 0:01:10]} 33. Bxg4 {[%emt 0:00:22]} Rxg4 {[%emt 0:00:03]} 34. Rc8 {[%emt 0:00:12]} Qf6 {[%emt 0:00:36]} 35. e5 {[%emt 0:00:27]} Qf5 {[%emt 0:00:11]} 36. e6 {[%emt 0:00:19]} h5 {[%emt 0:00:56]} 37. Qc7 {[%emt 0:01:31]} Rxc8 {[%emt 0:00:41]} 38. Qxc8+ {[%emt 0:00:03]} Kh7 {[%emt 0:00:04]} 39. Qc4 {[%emt 0:00:53]} f3 {[%emt 0:00:32]} 40. Qa2 {[%emt 0:01:14]} fxg2+ {[%emt 0:00:48]} 41. Qxg2 {[%emt 0:29:32]} Qxe6 {[%emt 0:01:30]} 42. Qf3 {[%emt 0:00:00]} Rg5 {[%emt 0:15:13]} 43. Qd3+ {[%emt 0:00:00]} Kh6 {[%emt 0:00:51]} 44. Qf3 {[%emt 0:00:00]} Qd5 {[%emt 0:02:32]} 45. Qxd5 {[%emt 0:00:00]} Rxd5 {[%emt 0:00:05]} 46. Rf7 {[%emt 0:00:00]} a5 {[%emt 0:04:28]} 47. Rb7 {[%emt 0:00:00]} Rd6 {[%emt 0:00:05]} 48. bxa5 {[%emt 0:00:00]} bxa5 {[%emt 0:00:04]} 49. Rb5 {[%emt 0:00:00]} Rd1+ {[%emt 0:03:25]} 50. Kg2 {[%emt 0:00:00]} Rd2+ {[%emt 0:00:03]} 51. Kg1 {[%emt 0:00:00]} h4 {[%emt 0:00:54]} 52. Rxa5 {[%emt 0:00:00]} h3 {[%emt 0:00:05]} 53. Rf5 {[%emt 0:00:00]} Rg2+ {[%emt 0:00:45]} 54. Kh1 {[%emt 0:00:00]} Ra2 {[%emt 0:00:10]} 55. Kg1 {[%emt 0:00:13]} Rg2+ {[%emt 0:00:06]} 56. Kh1 {[%emt 0:00:10]} Ra2 {[%emt 0:00:12]} 57. Kg1 {[%emt 0:00:04]} Rxa3 {[%emt 0:00:05]} 58. Kf2 {[%emt 0:03:43]} g5 {[%emt 0:00:26]} 59. Rf3 {[%emt 0:00:46]} Ra2+ {[%emt 0:00:53]} 60. Kg1 {[%emt 0:03:33]} Rg2+ {[%emt 0:01:09]} 61. Kh1 {[%emt 0:00:04]} g4 {[%emt 0:00:43]} 62. Rxh3+ {[%emt 0:00:12]} gxh3 {[%emt 0:00:03]} 1/2-1/2